Cogmind - Beta 15 @@@ ROGUE MODE // 2025.08.15 @ 17:21:53 Player: Zedx Result: Destroyed by S-10 Pest with Light Assault Rifle Performance ------------- Evolutions (2) 1000 Regions Visited (3) 600 Robots Destroyed (5) 25 Value Destroyed (73) 73 Prototype IDs (2) 40 Alien Tech Used (0) 0 Bonus (0) 0 TOTAL SCORE: 1738 Bonus ------- None Cogmind --------- Core Integrity 0/550 Matter 163/300 Energy 98/100 System Corruption 0% Temperature Cool (0) Movement Core (50) Location -8/Materials Parts ------- > --- POWER (1) -------- (None) > --- PROPULSION (4) --- (None) > --- UTILITY (4) ------ (None) > --- WEAPON (2) ------- (None) > --- INVENTORY (5) ---- Light Ion Engine Armored Treads Small Storage Unit Remote Datajack Peak State ------------ > --- POWER ------------ Light Ion Engine > --- PROPULSION ------- Airjet Flight Unit Flight Unit > --- UTILITY ---------- Structural Scanner Trap Scanner Advanced Visual Processing Unit Improved Terrain Scanner > --- WEAPON ----------- Light Assault Rifle Remote Datajack > --- INVENTORY -------- Light Ion Engine Light Ion Engine Small Storage Unit Grenade Launcher [Rating: 21] Favorites ----------- Power Light Ion Engine Engine Light Ion Engine Propulsion Flight Unit Treads Armored Treads Leg Aluminum Leg Hover Unit Airjet Flight Unit Flight Unit Utility Improved Terrain Scanner Device Improved Terrain Scanner Storage Small Storage Unit Processor Advanced Visual Processing Unit Weapon Light Assault Rifle Ballistic Gun Light Assault Rifle Launcher Grenade Launcher Special Weapon Remote Datajack Build | -11 -10 -10 -8 ------- Run | Yrd Mat Sub Mat Slots Evolved 4 | . . . 4 Power . | . . . . Propulsion 2 | . . . 2 Utility 2 | . . . 2 Weapon . | . . . . Parts Attached 18 | 6 3 . 9 Power 3 | 1 . . 2 Engine 3 | 1 . . 2 Core . | . . . . Reactor . | . . . . Propulsion 6 | 2 2 . 2 Treads 1 | . . . 1 Leg 2 | 2 . . . Wheel . | . . . . Hover 1 | . . . 1 Flight 2 | . 2 . . Utility 6 | 2 1 . 3 Device 3 | 1 1 . 1 Storage 1 | 1 . . . Processor 2 | . . . 2 Hackware . | . . . . Protection . | . . . . Artifact . | . . . . Weapon 3 | 1 . . 2 Energy Gun . | . . . . Energy Cannon . | . . . . Ballistic Gun 1 | 1 . . . Ballistic Cannon . | . . . . Launcher 1 | . . . 1 Special Weapon 1 | . . . 1 Impact Weapon . | . . . . Slashing Weapon . | . . . . Piercing Weapon . | . . . . Special Melee Weapon . | . . . . Unidentified Prototypes . | . . . . Parts Lost 7 | . . . 7 Power 1 | . . . 1 Propulsion 3 | . . . 3 Utility 1 | . . . 1 Weapon 2 | . . . 2 Highest Loss Streak 3 | . . . 3 To Critical Strikes . | . . . . Average Backups 3 | 2 2 4 4 Power 1 | 1 2 2 1 Propulsion . | . . . . Utility . | . . 1 . Weapon . | . . 1 . Tool/Special . | . . . . Unused Backups 1 | . 1 . . Power . | . . . . Propulsion . | . . . . Utility . | . . . . Weapon 1 | . 1 . . Tool/Special . | . . . . Average Slot Usage (%) 71 | . 82 85 58 Engine 11 | . 14 14 7 Leg 2 | . 4 . . Hover 2 | . . . 5 Flight 17 | . 23 28 9 Device 20 | . 22 28 18 Storage 1 | . 2 . 1 Processor 3 | . . . 8 Ballistic Gun 10 | . 14 14 6 Peak Build Rating 21 | 8 8 8 21 Average Rating 9 | 5 7 8 12 On Entrance 6 | . 8 8 8 Naked Turns 18 | . . . 18 Heaviest Build 12 | 10 10 6 12 Greatest Support 20 | 20 20 8 20 Greatest Overweight (x) 2 | . . . 2 Average Overweight (x) . | . . . . Largest Inventory Capacity 8 | 8 8 5 8 Average Capacity 5 | 7 5 5 5 Most Carried 5 | 4 4 4 5 Average Carried 3 | 2 2 4 4 Final Capacity 8 | 8 5 5 5 Final Carried 4 | 3 4 4 4 Class Distribution -------------------- 74% | Mutant 25% | Scout Dominant Class ---------------- Mutant | -10/Materials Mutant | -10/Subcaves Scout | -8/Materials Resources | -11 -10 -10 -8 ----------- Run | Yrd Mat Sub Mat Matter Collected 357 | 224 . . 133 Remotely . | . . . . Salvage Created 99 | 81 . . 18 Parts 10 | 9 . . 1 Haulers Intercepted . | . . . . Recyclers Shooed . | . . . . Parts Field Recycled . | . . . . Retrieved Matter . | . . . . Parts Self-Destructed . | . . . . Prevented . | . . . . Kills | -11 -10 -10 -8 ------- Run | Yrd Mat Sub Mat Combat Hostiles Destroyed 1 | . . . 1 AOE 1 | . . . 1 Classes Destroyed 3 | 2 . . 1 Worker 2 | 2 . . . Tunneler 2 | 2 . . . Grunt 1 | . . . 1 Best Kill Streak 3 | 3 . . 1 Combat Bots Only 1 | . . . 1 Max Kills in Single Turn 1 | 1 . . 1 Gunslinging . | . . . . Exploded 1 | . . . 1 Melee . | . . . . Uniques/NPCs Destroyed . | . . . . Combat | -11 -10 -10 -8 -------- Run | Yrd Mat Sub Mat Hostile Shots Fired 113 | . 6 . 107 Missed 31 | . 2 . 29 Hits 82 | . 4 . 78 Projectile 82 | . 4 . 78 Critical Strikes 4 | . . . 4 Damage Taken 941 | . 45 . 896 Core 565 | . 15 . 550 Absorbed by Shields . | . . . . Core Remaining (%) 97 | 100 . 94 . Volleys Fired 48 | 24 17 . 7 Largest 2 | 1 1 . 2 Hottest 50 | 20 20 . 50 Shots Fired 49 | 24 17 . 8 Gun 44 | 24 17 . 3 Cannon . | . . . . Launcher 4 | . . . 4 Special 1 | . . . 1 Kinetic 44 | 24 17 . 3 Thermal . | . . . . Explosive 4 | . . . 4 Electromagnetic . | . . . . Robot Hit Streak 7 | 7 1 . 1 Robot Miss Streak 4 | 2 4 . 1 Penetration Max . | . . . . Secondary Targets . | . . . . Shots Hit Robots 22 | 17 2 . 3 Core Hits 15 | 9 1 . 5 Critical Kills . | . . . . Critical Parts Destroyed . | . . . . Critical Strikes . | . . . . Melee Attacks . | . . . . Impact . | . . . . Slashing . | . . . . Piercing . | . . . . Sneak Attacks . | . . . . Combat Hostiles . | . . . . Follow-up Attacks . | . . . . Damage Inflicted 318 | 143 18 . 157 Guns 171 | 143 18 . 10 Cannons . | . . . . Explosions 123 | . . . 123 Melee . | . . . . Ramming 24 | . . . 24 Kinetic 171 | 143 18 . 10 Thermal 68 | . . . 68 Explosive 55 | . . . 55 Electromagnetic . | . . . . Impact . | . . . . Slashing . | . . . . Piercing . | . . . . Highest Corruption 1 | . 1 1 . Average Corruption 1 | . 1 1 . Corruption Purged . | . . . . Corruption Blocked . | . . . . Overload Shots . | . . . . Overflow Damage 18 | . . . 18 Projectiles . | . . . . Explosions 18 | . . . 18 Melee . | . . . . Knockbacks . | . . . . Impact . | . . . . Kinetic . | . . . . Secondary . | . . . . Self-Inflicted Damage 12 | . . . 12 Shots . | . . . . Rammed 3 | . . . 3 Targets Rammed 3 | . . . 3 Kicked . | . . . . Crushed . | . . . . Highest Temperature 8 | . 4 . 8 Average Temperature 2 | . 2 . 4 Received Heat Transfer 297 | . 27 . 270 Siege Activations . | . . . . Martial Activations . | . . . . Shielding Activations . | . . . . Robots Disrupted . | . . . . Combat Hostiles . | . . . . Robots Corrupted . | . . . . Combat Hostiles . | . . . . Parts Fried . | . . . . Impact Corruptions . | . . . . Robots Melted . | . . . . Combat Hostiles . | . . . . Parts Melted . | . . . . Heat Transferred 50 | . . . 50 Parts Sabotaged . | . . . . Parts Stolen . | . . . . Parts Stripped . | . . . . Power Chain Reactions . | . . . . Alert | -11 -10 -10 -8 ------- Run | Yrd Mat Sub Mat Maximum Alert Level . | . . . . Low Security (%) 100 | 100 100 . 100 Level 1 . | . . . . Level 2 . | . . . . Level 3 . | . . . . Level 4 . | . . . . Level 5 . | . . . . High Security . | . . . . Max Security . | . . . . Peak Influence 107 | 15 107 . 106 Initial 18 | . 3 . 18 Average 25 | 2 36 . 24 Influence Increases 375 | 20 131 30 194 Destroy 0b10 Robot/C 20 | . . . 20 Destroy 0b10 Robot/NC 20 | 20 . . . Destroy Leader 10 | . . . 10 Successful Hack 16 | . 11 . 5 Disable Machine 15 | . . . 15 Destroy Structure 24 | . . . 24 Lose Combat Pursuer 270 | . 120 30 120 Influence Decreases 346 | 15 85 45 201 Entered New Map 45 | . 2 25 18 Time Decay 241 | 15 83 20 123 Lost Part 60 | . . . 60 Squads Dispatched 5 | . 2 . 3 Investigation 1 | . . . 1 Extermination . | . . . . Reinforcement 4 | . 2 . 2 Assault . | . . . . Garrison . | . . . . Intercept . | . . . . Searches Triggered . | . . . . Construction Impeded . | . . . . Haulers Reinforced . | . . . . Active Scanning Responses . | . . . . Cargo Convoy Interrupts . | . . . . Stealth | -11 -10 -10 -8 --------- Run | Yrd Mat Sub Mat Distress Signals 1 | . 1 . . Communications Jammed . | . . . . Distress Signals . | . . . . Times Spotted 42 | . 15 1 26 Peak Tracking Total 13 | . 5 2 13 Tactical Retreats 7 | . 2 1 4 Traps | -11 -10 -10 -8 ------- Run | Yrd Mat Sub Mat Traps Triggered 1 | . . . 1 Indirectly . | . . . . Trap Hack Attempts . | . . . . Triggered . | . . . . Disarmed . | . . . . Reprogrammed . | . . . . Reused . | . . . . Traps Extracted . | . . . . Installed . | . . . . Triggered . | . . . . Objects Rigged 1 | . . . 1 Machines | -11 -10 -10 -8 ---------- Run | Yrd Mat Sub Mat Machines Disabled 1 | . . . 1 Max in Single Turn 1 | . . . 1 Machines Repaired . | . . . . Machines Dismantled . | . . . . Machines Sabotaged . | . . . . Overloaded Fab Kills . | . . . . Hacking | -11 -10 -10 -8 --------- Run | Yrd Mat Sub Mat Machines Accessed 10 | . 6 . 4 Terminals 9 | . 6 . 3 Fabricators . | . . . . Repair Stations . | . . . . Recycling Units 1 | . . . 1 Scanalyzers . | . . . . Garrison Access . | . . . . Total Hacks 27 | . 15 . 12 Successful 7 | . 4 . 3 Failed 20 | . 11 . 9 Catastrophic 7 | . 3 . 4 Database Lockouts . | . . . . Manual 17 | . 9 . 8 Terminals 25 | . 15 . 10 Fabricators . | . . . . Repair Stations . | . . . . Recycling Units 2 | . . . 2 Scanalyzers . | . . . . Garrison Access . | . . . . Terminal Hacks 5 | . 4 . 1 Prototype ID Bank 1 | . . . 1 Alert Level 1 | . 1 . . Dispatch Records 1 | . 1 . . Recall Investigation 1 | . 1 . . Registered Components 1 | . 1 . . Fabricator Hacks . | . . . . Repair Station Hacks . | . . . . Recycling Unit Hacks 1 | . . . 1 Report Inventory 1 | . . . 1 Scanalyzer . | . . . . Garrison Access Hacks . | . . . . Unauthorized Hacks 1 | . . . 1 Terminals 1 | . . . 1 Detonate 1 | . . . 1 Fabricators . | . . . . Repair Stations . | . . . . Recycling Units . | . . . . Scanalyzers . | . . . . Garrison Access . | . . . . Data Cores Recovered . | . . . . Used . | . . . . Hacking Detections 10 | . 6 . 4 Full Trace Events 2 | . 1 . 1 Feedback Events 1 | . 1 . . Corruption 1 | . 1 . . Feedback Blocked . | . . . . Robot Schematics Acquired . | . . . . Robots Built . | . . . . Authchips . | . . . . Time . | . . . . Total Robot Build Rating . | . . . . Part Schematics Acquired . | . . . . Parts Built . | . . . . Authchips . | . . . . Time . | . . . . Total Part Build Rating . | . . . . Parts Repaired . | . . . . Time . | . . . . Parts Recycled . | . . . . Recycled Matter . | . . . . Retrieved Matter . | . . . . Retrieved Components . | . . . . Parts Scanalyzed . | . . . . Part Schematics Acquired . | . . . . Parts Damaged . | . . . . Bothacking | -11 -10 -10 -8 ------------ Run | Yrd Mat Sub Mat Used RIF Installer . | . . . . Robots Hacked 1 | . . . 1 Non-combat . | . . . . Combat 1 | . . . 1 Robot Hacks Applied 1 | . . . 1 parse_system 1 | . . . 1 Relay Couplers Released . | . . . . Fabnet Peak Effective % . | . . . . Robots Rewired . | . . . . Allies Hacked . | . . . . Hacks Repelled . | . . . . Allies | -11 -10 -10 -8 -------- Run | Yrd Mat Sub Mat Total Allies . | . . . . Largest Group . | . . . . Highest-Rated Group . | . . . . Highest-Rated Ally . | . . . . Total Orders . | . . . . Ally Attacks . | . . . . Total Damage . | . . . . Kills . | . . . . Allies Corrupted . | . . . . Allies Melted . | . . . . Intel | -11 -10 -10 -8 ------- Run | Yrd Mat Sub Mat Active Infowar (turns) 741 | 48 332 44 317 Optics 289 | . . . 289 Terrain 656 | 48 332 44 232 Structural 493 | . 214 44 235 Traps 226 | . . . 226 Robot Analysis Total . | . . . . Derelict Logs Recovered . | . . . . Drone Launches . | . . . . Drone Recoveries . | . . . . Exploration | -11 -10 -10 -8 ------------- Run | Yrd Mat Sub Mat Turns Passed 852 | 135 332 44 341 Spaces Moved 1087 | 68 484 115 420 Core 123 | 7 . . 116 Treads 18 | . . . 18 Legs 100 | 61 39 . . Wheels . | . . . . Hover 255 | . . . 255 Flight 591 | . 445 115 31 Fastest Speed 37 | 50 37 37 37 Average Speed 54 | 112 43 37 62 Slowest Speed 170 | 120 120 37 170 Overloaded Moves . | . . . . Propulsion Burnouts . | . . . . Robots Hopped 8 | . 8 . . Potential Cave-ins . | . . . . Cave-ins Triggered . | . . . . Exploration Rate (%) 29 | 5 69 12 31 Regions Visited 3 Branch Regions 1 Pre-discovered Areas . | . . . . Known Exits Taken . | . . . . Unknown Exits Taken 3 | 1 1 1 . Scrap Searched . | . . . . Spaces Dug . | . . . . Terrain Destroyed 38 | . . . 38 Melee . | . . . . Projectile . | . . . . AOE 38 | . . . 38 Terrain Rammed . | . . . . Walls Destroyed . | . . . . Machines Disabled . | . . . . Actions | -11 -10 -10 -8 --------- Run | Yrd Mat Sub Mat Total 1300 | 107 584 115 494 Wait 113 | 1 77 1 34 Move 1068 | 67 467 114 420 Hop 8 | . 8 . . Pick Up 21 | 9 5 . 7 Fast Attach . | . . . . Attach 17 | 6 2 . 9 Detach 7 | . 2 . 5 Swap 8 | . 2 . 6 Drop 7 | . 4 . 3 Fire 48 | 24 17 . 7 Melee . | . . . . Ram 3 | . . . 3 Kick . | . . . . Crush . | . . . . Escape Stasis . | . . . . Rewire . | . . . . Trap . | . . . . Miscellaneous . | . . . . Route ------- -11/Scrapyard -10/Materials (discovered 3 exits: [*Mat] / [*Min] / [*Sub]) -10/Subcaves -8/Materials History --------- Turn | Location | Event 20 | -11/Scrapyard | Discovered new exit (range 16) 136 | -11/Scrapyard | Entered Materials 313 | -10/Materials | Build established: Mutant 336 | -10/Materials | Discovered new exit (range 11) 406 | -10/Materials | Discovered new exit (range 10) 451 | -10/Materials | Discovered new exit (range 11) 468 | -10/Materials | Entered Subcaves 491 | -10/Subcaves | Shifting Twisted Machinery released Sub. Monowheel 506 | -10/Subcaves | Discovered new exit (range 13) 507 | -10/Subcaves | Shifting Twisted Machinery released Sub. Machine Gun 512 | -10/Subcaves | Entered Materials 512 | -8/Materials | Evolved 4 slots: Propulsion x2, Utility x2 778 | -8/Materials | Lost 3 parts (2n1u) 836 | -8/Materials | Core integrity fell below 50% 843 | -8/Materials | Core integrity fell below 20% 853 | -8/Materials | Destroyed by S-10 Pest with Light Assault Rifle Last Messages --------------- 00818_ Critical hit (Burn: +37). 00823_ S-10 Pest destroyed. 00823_ Lgt. Assault Rifle destroyed. 00829_ S-10 Pest destroyed. 00829_ Slammed into A-02 Transporter. 00829_ Adv. Visual Processing Unit broken. 00829_ Destabilizing: Short circuit. 00835_ Discarded Broken Adv. Visual Processing Unit. 00835_ C-30 ARC bursts open, deploying its payload. 00835_ S-10 Pest unfolds itself. 00836_ Slammed into S-10 Pest. 00836_ K-01 Serf collects debris. 00837_ Acquired 115 matter. 00839_ K-01 Serf collects debris. 00847_ Slammed into U-05 Engineer. 00852_ ALERT: Hostiles spotted, dispatching reinforcements to Terminal M012. [Achievement: Back For More] Map ----- +----------------------------------------------------+ | ?????????????????????????????????????????????????? | | ?????????????????????????????????????????????????? | | ?????????????????????????????????????????????????? | | ?????????????????????????????????????????????????? | | ?????????????????????????????????????????????????? | | ?????????????????????????????????????????????????? | | ?????????????????????????????????????????????????? | | ?????????????????????????????????????????????????? | | ?????????????????????????????????????????????????? | | ?????????????????????????????????????????????????? | | ?????????????????????????????????????????????????? | | ?????????????????????????????????????????????????? | | ?????????????????????????????????????????????????? | | ?????????????????????????????????????????????????? | | ?????????????????????????????????????????????????? | | ??????????????????????####???????????????????????? | | ??????????????????????#"""???????????????????????? | | ?????????????????????##"T"###????????????????????? | | ?????????????????????? o /#????????????????????? | | ?????????????????????? #????????????????????? | | ??????????????????????? ""?????????????????????? | | ???????????????????????= T"?????????????????????? | | ???????????????????????? "??????????????????????? | | ????????????????????????! ??????????????????????? | | ???????????????????????##/######? ????????????? | | ???????????????????????# @ # ##??????????? | | ???????????????????????# # ???????????? | | ???????????????????????# # ???????????? | | ???????????????????????# w # ????????????? | | ???????????????????????# # ????????????? | | ???????????????????????# ## #????????????? | | ???????????????????????# ## #????????????? | | ???????????????????????# ## #????????????? | | ???????????????????????# s ## +????????????? | | ???????????????????????# ! ss ## #????????????? | | ???????????????????????# ss ## #????????????? | | ??????????????????# #######s### #????????????? | | ??????????????????# #????????????? | | ??????????????? #????????????? | | ??????????????????# #????????????? | | ??????????????????## ########+### #????????????? | | ????????????????????????????????# #????????????? | | ????????????????????????????????# #????????????? | | ????????????????????????????????# #????????????? | | ????????????????????????????????# #????????????? | | ????????????????????????????????# #????????????? | | ????????????????????????????????# #????????????? | | ????????????????????????????????# #????????????? | | ????????????????????????????????# #????????????? | | ????????????????????????????????# #????????????? | +----------------------------------------------------+ Best States ------------- Heat Dissipation 31 Energy Generation 10 Energy Capacity 125 Matter Stores 240 Matter Capacity 300 Sight Range 20 Terrain Scan Range 16 Terrain Scan Density 10 Evasion (%) 62 Targeting Accuracy 8 Recoil Reduction 1 Item Schematics ----------------- None Robot Schematics ------------------ None Fabricated ------------ Nothing Repaired ---------- Nothing Alien Tech Used ----------------- None Achievements -------------- Back For More Challenges ------------ None Game ------ Seed TachyonCoilCorpse Manual? 0 Play Time 00:18:30 Cumulative 42.9 hours Start 2025.08.15 @ 17:06:04 End 2025.08.15 @ 17:21:53 Sessions 1 Manual Loads 0 Difficulty Rogue Special Mode None Game No. 50 Rogue 50 Adventurer 0 Explorer 0 Win Type - Total 0 Types 0/0/0/0/0/0/0/0/0/0 Lore% 17 Gallery% 31 Achievement% 24 Wizard Run 0 Options --------- Layout 1 ASCII 0 Keyboard 1 Movement Numpad Keybinds 0 Fullscreen 2 Font 20/SmallcapsGlow Map View 50x35 Zoom Use 0% Tactical HUD 1 Map Filters NONE Filters NONE Steam 1 RUN: f975c3d0-ed6b-4d70-9e75-823bbf58f0de